bitfinex/quotes_SOLUSD_20250929
["timestamp","ask_amount","ask_price","bid_price","bid_amount"]
[1759153216132,26.0,207.5,207.47,0.7]
[1759153216332,26.0,207.5,207.48,0.7]
[1759153216830,6.53409608,207.49,207.45,0.2]
[1759153217954,37.35430238,207.46,207.45,0.2]
[1759153219252,4.81974166,207.48,207.45,0.9]
[1759153221058,4.81974166,207.48,207.45,0.2]
[1759153221563,26.0,207.47,207.46,0.68]
[1759153221859,26.0,207.47,207.45,0.2]
[1759153222070,0.6,207.54,207.45,5.02041521]
[1759153222071,4.81834827,207.54,207.45,5.02041521]
[1759153222366,4.81672366,207.61,207.46,14.27559401]
[1759153222550,6.53409608,207.59,207.47,0.68]
[1759153222749,26.0,207.56,207.48,38.5]
[1759153223069,6.53409608,207.59,207.49,0.68]
[1759153223391,16.85853282,207.61,207.46,38.5]
[1759153223392,6.53409608,207.53,207.46,38.5]
[1759153223568,6.53409608,207.5,207.46,38.5]
[1759153223864,6.53409608,207.5,207.45,0.2]
[1759153224043,6.53409608,207.5,207.46,39.2]
[1759153224240,11.35344998,207.5,207.47,0.68]
[1759153224542,11.35344998,207.5,207.46,38.52]
[1759153224543,11.35344998,207.5,207.45,0.2]
[1759153224743,32.53409608,207.47,207.45,0.2]
[1759153224942,26.0,207.47,207.45,0.2]
[1759153225261,26.0,207.47,207.46,0.68]
[1759153225449,6.53409608,207.48,207.46,0.68]
[1759153225635,6.53409608,207.48,207.45,0.2]
[1759153225838,6.53409608,207.48,207.46,0.68]
[1759153226046,6.53409608,207.48,207.45,0.2]
[1759153226245,6.53409608,207.48,207.45,0.88]
[1759153226469,6.53409608,207.48,207.45,0.2]
[1759153226979,11.35394294,207.48,207.45,0.2]
[1759153227269,26.0,207.46,207.45,0.2]
[1759153228763,37.35430238,207.46,207.45,0.2]
[1759153228960,6.53409608,207.46,207.45,0.88]
[1759153229474,26.0,207.48,207.45,0.88]
[1759153229767,6.53409608,207.51,207.45,0.88]
[1759153230547,6.53409608,207.51,207.46,0.68]
[1759153230900,6.53409608,207.54,207.47,0.68]
[1759153231058,6.53409608,207.54,207.47,39.2]
[1759153231262,11.35258813,207.54,207.47,39.2]
[1759153231458,6.53409608,207.51,207.45,0.2]
[1759153231649,6.53409608,207.51,207.47,38.52]
[1759153232345,6.53409608,207.51,207.45,0.2]
[1759153232753,6.53409608,207.48,207.45,0.2]
[1759153233271,6.53409608,207.49,207.46,0.68]
[1759153233453,6.53409608,207.49,207.45,0.2]
[1759153233855,16.86746987,207.5,207.45,0.2]
[1759153233856,6.53409608,207.46,207.45,0.2]
[1759153234159,26.0,207.48,207.45,0.2]
[1759153234347,26.0,207.47,207.45,0.2]
[1759153234548,26.0,207.47,207.45,0.88]
[1759153234849,30.82011368,207.47,207.45,0.2]
[1759153235052,4.82011368,207.47,207.45,0.2]
[1759153235244,4.81973498,207.49,207.45,0.2]
[1759153235456,6.53409608,207.49,207.46,0.68]
[1759153235658,6.53409608,207.53,207.47,0.68]
[1759153236573,32.53409608,207.53,207.47,0.68]
[1759153236763,11.35272493,207.53,207.48,4.81974166]
[1759153237069,6.53409608,207.58,207.49,0.68]
[1759153237269,12.0410375,207.63,207.5,13.59559401]
[1759153237469,12.0410375,207.63,207.52,13.59559401]
[1759153237470,4.81649166,207.62,207.52,13.59559401]
[1759153237673,4.81649166,207.62,207.53,39.24]
[1759153237854,4.81649166,207.62,207.54,0.68]
[1759153238255,16.85772082,207.62,207.54,0.68]
[1759153238679,6.53409608,207.6,207.54,39.26]
[1759153238980,11.35106171,207.6,207.55,0.68]
[1759153239173,23.39345092,207.6,207.55,79.3]
[1759153239351,0.6,207.59,207.55,79.3]
[1759153239550,0.6,207.59,207.43,37.66]
[1759153239551,6.53409608,207.57,207.54,38.56]
[1759153239745,6.53409608,207.57,207.55,0.68]
[1759153239977,6.53409608,207.57,207.53,38.56]
[1759153239978,6.53409608,207.57,207.45,0.2]
[1759153240157,6.53409608,207.51,207.45,0.88]
[1759153240472,16.85935484,207.6,207.45,0.88]
[1759153240473,6.53409608,207.48,207.45,0.2]
[1759153240970,4.81997397,207.47,207.45,0.2]
[1759153241767,6.53409608,207.48,207.45,0.2]
[1759153241965,11.35384355,207.48,207.45,0.2]
[1759153242148,6.53409608,207.48,207.46,0.68]
[1759153242364,26.0,207.57,207.47,0.68]
[1759153242559,32.53409608,207.53,207.47,0.68]
[1759153242965,4.81881264,207.52,207.47,0.68]
[1759153243160,37.35268141,207.53,207.48,0.68]
[1759153243369,37.35268141,207.53,207.49,0.68]
[1759153243677,26.0,207.53,207.5,0.68]
[1759153244059,4.81718772,207.59,207.51,0.68]
[1759153244256,6.53409608,207.58,207.48,0.68]
[1759153244476,32.53409608,207.55,207.49,38.64]
[1759153245164,32.53409608,207.55,207.5,0.68]
[1759153245367,6.53409608,207.58,207.51,0.68]
[1759153245562,26.0,207.55,207.51,0.68]
[1759153245776,26.0,207.55,207.51,39.32]
[1759153246084,26.0,207.55,207.51,0.68]
[1759153246274,26.0,207.57,207.46,13.59559401]
[1759153246474,26.6,207.57,207.47,0.68]
[1759153246678,26.6,207.57,207.47,39.3]
[1759153246875,26.0,207.55,207.48,38.66]
[1759153247179,4.81834827,207.54,207.48,38.66]
[1759153247567,26.0,207.53,207.47,0.68]
[1759153247776,26.0,207.53,207.48,38.66]
[1759153248163,0.6,207.6,207.49,0.68]
[1759153248481,26.0,207.62,207.49,0.68]
[1759153248482,6.53409608,207.62,207.5,13.59559401]
[1759153248659,6.53409608,207.63,207.52,13.59559401]
[1759153248858,6.53409608,207.63,207.53,0.68]
[1759153249155,30.81706104,207.6,207.54,38.68]
[1759153249365,30.81706104,207.6,207.55,0.68]
[1759153249662,4.81706104,207.6,207.56,0.68]
[1759153249861,30.81706104,207.6,207.56,0.68]
[1759153250274,12.04139452,207.62,207.56,0.68]
[1759153250789,26.0,207.6,207.56,39.34]
[1759153251288,30.81712732,207.6,207.56,39.34]
[1759153251585,18.57494206,207.63,207.57,0.69]
[1759153251586,4.81648794,207.63,207.57,0.69]
[1759153251989,26.0,207.61,207.57,0.69]
[1759153252474,4.81486831,207.69,207.58,0.69]
[1759153252686,11.34874005,207.7,207.59,13.59559401]
[1759153252861,11.34874005,207.7,207.6,0.69]
[1759153253062,23.38533128,207.7,207.6,0.69]
[1759153253269,23.38533128,207.7,207.6,5.50681218]
[1759153253468,4.81443211,207.71,207.61,0.69]
[1759153253679,6.53409608,207.74,207.62,38.66]
[1759153253885,6.53409608,207.74,207.63,14.28559401]
[1759153254072,6.53409608,207.74,207.64,0.69]
[1759153254265,26.0,207.71,207.64,0.69]
[1759153254791,30.81442991,207.71,207.64,0.69]
[1759153255484,30.81442991,207.71,207.65,38.64]
[1759153255676,30.81442991,207.71,207.66,38.62]
[1759153255861,23.98453773,207.71,207.66,38.62]
[1759153256061,0.6,207.7,207.66,38.62]
[1759153256282,31.01617019,207.7,207.61,0.69]
[1759153256480,26.0,207.67,207.61,0.69]
[1759153256688,26.0,207.67,207.62,38.62]
[1759153256988,4.8155639,207.66,207.62,38.62]
[1759153257690,16.85447365,207.66,207.62,38.62]
[1759153258189,26.0,207.67,207.63,0.69]
[1759153259190,4.8155639,207.66,207.63,39.29]
[1759153259379,4.8155639,207.66,207.59,0.69]
[1759153259570,16.85447365,207.66,207.59,0.69]
[1759153259766,16.85447365,207.66,207.6,38.58]
[1759153259971,16.85447365,207.66,207.59,0.69]
[1759153260367,16.85447365,207.66,207.6,38.58]
[1759153260564,31.41532471,207.68,207.6,38.58]
[1759153260871,26.0,207.69,207.61,0.69]
[1759153261296,30.81510015,207.68,207.61,0.69]
[1759153262196,43.45285053,207.68,207.57,0.69]
[1759153262365,4.41617019,207.66,207.55,13.59559401]
[1759153262693,26.0,207.62,207.51,0.69]
[1759153262897,26.0,207.62,207.52,38.56]
[1759153263199,16.86015703,207.59,207.53,38.58]
[1759153263495,16.86015703,207.59,207.51,0.69]
[1759153263795,16.86015703,207.59,207.54,38.58]
[1759153263977,17.46015703,207.59,207.54,38.58]
[1759153264379,26.0,207.58,207.54,38.58]
[1759153264774,0.6,207.67,207.55,0.69]
[1759153265095,12.03851247,207.67,207.56,13.59559401]
[1759153265278,12.03851247,207.67,207.58,13.59559401]
[1759153265471,12.03851247,207.67,207.59,0.69]
[1759153265668,12.03851247,207.67,207.6,38.6]
[1759153265981,26.0,207.66,207.6,38.6]
[1759153266179,16.85285053,207.68,207.6,39.29]
[1759153266375,30.81510015,207.68,207.6,39.29]
[1759153266568,4.81417292,207.72,207.61,0.69]
[1759153266766,4.81417292,207.72,207.62,13.59559401]
[1759153266999,4.81417292,207.72,207.63,0.69]
[1759153267594,16.84960523,207.72,207.63,5.50614438]
[1759153267776,16.84960523,207.72,207.64,14.28559401]
[1759153267979,16.84960523,207.72,207.65,0.69]
[1759153268176,5.01617019,207.76,207.66,38.58]
[1759153268177,4.81370944,207.74,207.66,38.58]
[1759153268430,24.06304024,207.79,207.66,38.58]
[1759153268431,5.01617019,207.79,207.67,14.28559401]
[1759153268601,0.1,207.8,207.69,13.59559401]
[1759153269084,0.1,207.8,207.7,0.69]
[1759153269280,16.84393335,207.79,207.7,0.69]
[1759153269480,0.1,207.8,207.66,38.58]
[1759153269481,26.0,207.74,207.66,0.69]
[1759153269902,4.41617019,207.72,207.66,38.6]
[1759153270469,4.41617019,207.72,207.63,0.69]
[1759153270675,4.41617019,207.72,207.64,38.6]
[1759153271298,26.0,207.74,207.66,13.59559401]
[1759153271610,26.0,207.74,207.67,5.50532468]
[1759153271898,16.84636118,207.76,207.68,0.69]
[1759153272277,4.41617019,207.75,207.66,14.28559401]
[1759153272489,42.84636118,207.76,207.67,38.6]
[1759153272807,4.41617019,207.75,207.68,0.69]
[1759153273009,16.84636118,207.76,207.68,0.69]
[1759153273505,0.7,207.8,207.68,0.69]
[1759153273506,4.8127155,207.79,207.7,4.81463649]
[1759153273698,4.8127155,207.79,207.71,0.72]
[1759153274101,4.8127155,207.79,207.72,13.59559401]
[1759153274310,0.1,207.8,207.73,38.58]
[1759153274475,0.1,207.8,207.73,39.3]
[1759153274678,0.1,207.8,207.74,0.72]
[1759153274990,0.1,207.8,207.75,13.59559401]
[1759153275195,0.1,207.8,207.76,0.72]
[1759153275710,0.1,207.8,207.77,0.72]
[1759153276383,0.1,207.8,207.78,0.72]
[1759153276678,0.1,207.8,207.79,38.58]
[1759153277111,0.1,207.8,207.74,0.72]
[1759153277311,0.1,207.8,207.79,38.56]
[1759153278007,0.1,207.8,207.79,39.28]
[1759153278990,0.1,207.8,207.79,38.56]
[1759153279304,0.1,207.8,207.79,39.28]
[1759153279808,0.1,207.8,207.79,39.26]
[1759153280105,0.1,207.8,207.79,38.54]
[1759153280278,4.91231953,207.8,207.79,38.54]
[1759153280476,0.1,207.8,207.79,38.54]
[1759153280679,0.1,207.8,207.79,118.56]
[1759153281587,4.91231953,207.8,207.79,79.3]
[1759153281778,5.51231953,207.8,207.79,79.3]
[1759153281980,4.91231953,207.8,207.79,79.3]
[1759153282195,23.82,207.8,207.79,43.35255113]
[1759153282397,0.68,207.91,207.79,57.61814514]
[1759153282615,0.1,207.93,207.82,13.59559401]
[1759153282909,0.1,207.93,207.84,13.59559401]
[1759153283113,0.68,207.92,207.84,13.59559401]
[1759153283488,0.68,207.92,207.8,13.59559401]
[1759153283700,0.68,207.92,207.82,13.59559401]
[1759153283884,5.48955401,207.92,207.82,18.407438]
[1759153284305,26.68,207.92,207.82,18.407438]
[1759153284616,0.68,207.91,207.69,58.54639918]
[1759153284910,35.22571733,207.92,207.64,37.62]
[1759153284911,26.0,207.87,207.74,4.41617019]
[1759153285114,26.0,207.87,207.75,13.59559401]
[1759153285410,26.0,207.87,207.77,13.59559401]
[1759153285411,0.68,207.87,207.77,13.59559401]
[1759153285796,4.81093043,207.86,207.78,4.81278275]
[1759153286115,0.68,207.87,207.77,18.40860042]
[1759153286408,0.68,207.87,207.77,16.84554238]
[1759153286708,0.68,207.86,207.77,4.81300641]
[1759153286905,0.68,207.85,207.72,4.41617019]
[1759153287085,0.68,207.84,207.73,13.59559401]
[1759153287685,4.81162488,207.83,207.74,4.81370944]
[1759153288005,4.81162488,207.83,207.74,43.45370944]
[1759153288209,0.68,207.84,207.74,43.45370944]
[1759153288210,0.68,207.84,207.74,122.75370944]
[1759153288605,0.68,207.84,207.74,84.11370944]
[1759153288803,5.49142834,207.84,207.75,38.64]
[1759153289008,5.49142834,207.84,207.76,38.62]
[1759153289599,5.49142834,207.84,207.77,38.62]
[1759153289909,0.68,207.83,207.78,38.62]
[1759153290116,0.68,207.82,207.7,4.81458871]
[1759153290410,0.68,207.81,207.71,38.62]
[1759153290709,0.68,207.8,207.7,4.81458871]
[1759153291011,0.68,207.79,207.71,38.6]
[1759153291315,26.0,207.81,207.71,38.6]
[1759153291889,5.49231953,207.8,207.71,43.41437863]
[1759153292215,0.68,207.79,207.68,18.0117642]
[1759153292406,26.0,207.81,207.69,4.81483398]
[1759153292583,42.53638773,208.02,207.69,4.81483398]
[1759153292584,26.0,207.84,207.75,4.41617019]
[1759153292784,26.0,207.84,207.76,38.72]
[1759153293187,0.68,207.83,207.77,38.72]
[1759153293701,0.68,207.82,207.71,4.41617019]
[1759153293899,4.81208796,207.81,207.72,43.51417292]
[1759153294104,0.68,207.8,207.73,38.7]
[1759153294406,0.68,207.79,207.74,38.7]
[1759153294705,30.81208796,207.81,207.74,38.7]
[1759153295205,31.49208796,207.81,207.74,38.7]
[1759153295527,0.1,207.84,207.74,38.7]
[1759153295528,4.81182411,207.83,207.74,38.7]
[1759153295705,4.81182411,207.83,207.74,43.11617019]
[1759153296017,4.91150995,207.84,207.75,30.44276608]
[1759153296513,0.68,207.83,207.74,4.41617019]
[1759153296719,0.68,207.83,207.71,12.03550771]
[1759153296720,0.68,207.82,207.75,38.72]
[1759153297424,42.93999339,207.84,207.75,38.72]
[1759153297425,0.68,207.81,207.75,38.72]
[1759153297795,4.81231953,207.8,207.72,4.41617019]
[1759153297994,4.81231953,207.8,207.71,4.81440469]
[1759153297995,4.81231953,207.8,207.73,38.72]
[1759153298493,16.84311837,207.8,207.73,38.72]
[1759153298694,0.68,207.79,207.73,38.72]
[1759153299694,4.81231953,207.8,207.7,4.81451692]
[1759153299895,16.84473962,207.78,207.67,13.59559401]
[1759153300128,0.68,207.77,207.67,79.3]
[1759153300416,0.68,207.77,207.68,38.7]
[1759153300590,0.68,207.76,207.65,4.41617019]
[1759153300793,26.68,207.75,207.66,38.68]
[1759153301209,26.68,207.75,207.64,37.62]
[1759153301397,26.0,207.73,207.64,37.62]
[1759153301604,0.68,207.72,207.65,38.68]
[1759153301830,26.0,207.73,207.65,38.68]
[1759153302000,26.0,207.71,207.65,38.68]
[1759153302530,0.68,207.71,207.65,38.68]
[1759153303216,0.68,207.71,207.64,37.62]
[1759153303410,0.68,207.71,207.65,38.7]
[1759153303715,26.0,207.7,207.65,38.7]
[1759153303922,26.68,207.7,207.65,38.7]
[1759153304129,31.49470271,207.7,207.65,38.7]
[1759153304421,0.68,207.69,207.65,38.7]
[1759153304618,4.81443953,207.71,207.65,38.7]
[1759153304827,0.68,207.7,207.65,38.7]
[1759153305122,26.0,207.66,207.64,37.62]
[1759153305317,9.23060972,207.71,207.65,38.68]
[1759153305519,30.81443953,207.71,207.65,38.68]
[1759153305727,5.49443953,207.71,207.65,38.68]
[1759153306015,31.49443953,207.71,207.65,38.68]
[1759153307215,26.0,207.71,207.65,43.49576582]
[1759153307612,31.49444629,207.71,207.65,38.68]
[1759153308029,26.68,207.71,207.65,38.68]
[1759153308321,5.09617019,207.7,207.63,38.66]
[1759153308906,0.68,207.7,207.63,38.66]
[1759153309108,4.81486831,207.69,207.63,38.66]
[1759153309430,5.49486831,207.69,207.63,38.66]
[1759153309600,17.53203909,207.69,207.63,38.66]
[1759153310199,17.53203909,207.69,207.64,38.7]
[1759153310397,4.81486831,207.69,207.6,4.81695553]
[1759153310607,26.0,207.68,207.61,38.68]
[1759153311121,4.81530375,207.68,207.59,4.81717647]
[1759153311323,4.81530375,207.68,207.6,38.68]
[1759153311518,26.0,207.69,207.6,38.68]
[1759153311715,30.81489585,207.69,207.6,38.68]
[1759153312117,0.68,207.68,207.61,38.72]
[1759153312602,0.68,207.67,207.56,4.81766785]
[1759153312798,0.68,207.67,207.57,52.29559401]
[1759153312997,0.68,207.66,207.57,52.29559401]
[1759153313225,4.81602774,207.64,207.58,38.7]
[1759153313436,4.81574162,207.66,207.58,38.7]
[1759153313723,14.49030357,207.81,207.58,38.7]
[1759153313724,26.0,207.69,207.58,38.7]
[1759153314021,31.49465336,207.7,207.59,13.59559401]
[1759153314521,26.0,207.67,207.6,38.72]
[1759153315100,26.0,207.68,207.6,38.72]
[1759153315325,26.0,207.68,207.61,4.81672366]
[1759153315529,30.81511334,207.68,207.61,16.85853282]
[1759153315823,30.81511334,207.68,207.61,13.59559401]
[1759153316129,30.8151537,207.68,207.61,13.59559401]
[1759153316709,26.0,207.66,207.58,18.41301379]
[1759153316912,26.0,207.64,207.58,4.81741978]
[1759153317114,26.0,207.64,207.59,38.7]
[1759153317318,31.49617053,207.64,207.59,38.7]
[1759153317521,0.68,207.63,207.54,18.41394228]
[1759153317699,26.0,207.61,207.52,0.2]
[1759153317898,26.0,207.61,207.53,38.72]
[1759153318104,0.68,207.6,207.53,38.72]
[1759153319116,4.81718772,207.59,207.52,0.2]
[1759153319319,32.52668602,207.58,207.52,0.2]
[1759153319526,26.0,207.55,207.52,0.2]
[1759153319732,32.52668602,207.55,207.52,0.2]
[1759153319935,0.68,207.54,207.52,0.2]
[1759153320232,0.68,207.57,207.52,38.9]
[1759153320529,0.68,207.56,207.52,38.9]
[1759153320735,32.52668602,207.57,207.52,0.2]
[1759153320736,0.68,207.55,207.52,0.2]
[1759153320908,26.0,207.51,207.45,0.2]
[1759153321114,26.0,207.51,207.48,38.76]
[1759153321115,38.02581488,207.51,207.48,38.76]
[1759153321310,0.68,207.5,207.48,38.76]
[1759153321525,0.68,207.49,207.48,38.76]
[1759153322021,26.0,207.47,207.45,0.2]
[1759153322223,0.68,207.46,207.45,38.94]
[1759153322430,26.0,207.47,207.45,38.94]
[1759153322927,26.68,207.47,207.45,38.94]
[1759153323105,26.0,207.47,207.45,38.94]
[1759153324308,26.68,207.47,207.45,38.94]
[1759153324506,7.20668602,207.5,207.45,38.94]
[1759153324726,11.34547821,207.53,207.45,43.76042013]
[1759153324931,0.68,207.52,207.45,43.76042013]
[1759153325314,5.49890123,207.52,207.45,43.76042013]
[1759153325541,12.04550312,207.55,207.45,43.76042013]
[1759153325542,0.68,207.56,207.46,0.22]
[1759153325837,5.49789607,207.56,207.46,0.22]
[1759153326042,5.49789607,207.56,207.47,38.7]
[1759153326043,26.0,207.53,207.47,38.7]
[1759153326338,26.0,207.52,207.47,38.7]
[1759153326932,26.68,207.52,207.47,38.7]
[1759153327327,26.0,207.52,207.48,4.81974166]
[1759153327516,26.68,207.52,207.49,38.74]
[1759153327719,0.68,207.51,207.49,38.74]
[1759153328123,26.0,207.52,207.49,38.74]
[1759153328339,0.68,207.51,207.45,0.2]
[1759153328519,0.68,207.51,207.46,38.72]
[1759153328723,0.68,207.5,207.46,38.72]
[1759153329043,0.68,207.49,207.46,38.72]
[1759153329227,0.68,207.51,207.47,38.72]
[1759153329431,0.68,207.5,207.47,38.72]
[1759153329635,26.0,207.49,207.47,38.72]
[1759153329820,0.68,207.48,207.47,38.72]
[1759153330020,26.68,207.48,207.47,38.72]
[1759153330446,26.68,207.48,207.45,0.2]
[1759153330635,26.68,207.48,207.46,38.68]
[1759153330954,12.04738394,207.52,207.46,38.68]
[1759153330955,26.0,207.49,207.46,38.68]
[1759153331348,26.68,207.49,207.46,38.68]
[1759153331924,26.0,207.49,207.46,38.68]
[1759153332142,26.68,207.49,207.46,38.68]
[1759153332346,26.0,207.49,207.46,38.68]
[1759153332646,13.59559401,207.58,207.46,43.50020036]
[1759153332831,0.68,207.56,207.46,43.50020036]
[1759153333030,0.68,207.56,207.46,43.72020036]
[1759153333233,7.20668602,207.55,207.46,4.82020036]
[1759153333442,0.68,207.54,207.47,38.66]
[1759153333637,0.68,207.54,207.48,4.81974166]
[1759153333953,37.34464336,207.56,207.48,4.81974166]
[1759153334326,33.18668602,207.56,207.48,4.81974166]
[1759153334526,38.00457997,207.56,207.48,4.81974166]
[1759153334727,0.66,207.55,207.48,4.81974166]
[1759153335235,26.0,207.54,207.47,38.66]
[1759153335440,12.00426143,207.58,207.48,0.22]
[1759153335753,12.00337886,207.62,207.5,13.59559401]
[1759153335973,0.66,207.61,207.51,0.22]
[1759153336454,26.0,207.59,207.52,38.66]
[1759153336629,26.66,207.59,207.52,38.66]
[1759153337126,26.66,207.59,207.5,13.59559401]
[1759153337127,26.0,207.53,207.46,4.82019573]
[1759153337338,26.66,207.53,207.47,38.64]
[1759153337824,31.4787378,207.53,207.47,43.45995714]
[1759153338027,0.66,207.58,207.48,0.22]
[1759153338230,0.66,207.58,207.48,13.81559401]
[1759153338231,7.18668602,207.58,207.48,13.81559401]
[1759153338527,33.18668602,207.58,207.48,13.81559401]
[1759153339131,26.0,207.58,207.49,13.81559401]
[1759153339349,26.0,207.58,207.48,13.59559401]
[1759153339536,0.66,207.57,207.48,13.81559401]
[1759153339734,30.81752969,207.58,207.5,13.59559401]
[1759153339938,26.0,207.58,207.5,13.81559401]
[1759153340261,7.18668602,207.63,207.51,0.22]
[1759153340464,7.18668602,207.63,207.53,13.59559401]
[1759153340666,33.18668602,207.63,207.54,0.22]
[1759153341033,0.66,207.63,207.54,0.22]
[1759153341556,26.66,207.63,207.54,0.22]
[1759153341750,26.66,207.63,207.55,16.8634064]
[1759153342161,6.52668602,207.66,207.55,16.8634064]
[1759153342459,0.7,207.65,207.56,0.22]
[1759153342638,26.0,207.63,207.57,38.64]
[1759153342832,26.7,207.63,207.57,38.64]
[1759153344041,0.7,207.62,207.57,38.64]
[1759153344236,0.7,207.62,207.57,43.45763912]
[1759153344756,26.0,207.63,207.57,43.45763912]
[1759153345064,30.81640499,207.63,207.57,38.64]
[1759153345236,0.7,207.62,207.57,38.64]
[1759153345439,0.7,207.61,207.57,38.64]
[1759153345657,0.7,207.6,207.57,38.64]
[1759153345848,37.34309101,207.63,207.57,117.94]
[1759153346043,0.7,207.62,207.57,117.94]
[1759153346252,0.7,207.61,207.57,117.94]
[1759153346763,0.7,207.61,207.57,122.75762449]
[1759153346948,26.7,207.63,207.57,122.75762449]
[1759153347152,31.51627873,207.63,207.57,122.75762449]
[1759153347561,6.52668602,207.65,207.57,122.75762449]
[1759153347562,4.81581261,207.65,207.57,134.80175418]
[1759153347765,4.81581261,207.65,207.57,117.94]
[1759153347766,26.0,207.63,207.57,117.94]
[1759153347955,5.51649166,207.62,207.57,117.94]
[1759153348154,0.7,207.62,207.57,117.94]
[1759153348363,0.7,207.66,207.58,0.22]
[1759153348862,0.7,207.66,207.57,134.80174403]
[1759153349375,0.7,207.65,207.57,134.80174403]
[1759153349864,5.51584311,207.65,207.57,122.75761434]
[1759153350068,0.7,207.65,207.57,122.75761434]
[1759153350270,5.51589348,207.65,207.57,122.75761434]
[1759153350572,33.22668602,207.67,207.58,0.22]
[1759153350868,26.0,207.64,207.59,38.54]
[1759153351046,0.7,207.63,207.59,38.54]
[1759153351251,23.38035592,207.67,207.59,38.54]
[1759153351569,0.7,207.66,207.59,38.54]
[1759153351751,6.52668602,207.64,207.57,79.3]
[1759153352062,0.7,207.63,207.6,38.54]
[1759153352272,0.7,207.62,207.6,38.54]
[1759153352456,6.52668602,207.64,207.6,38.54]
[1759153352652,0.7,207.63,207.6,38.54]
[1759153352867,0.7,207.62,207.6,38.54]
[1759153353477,26.0,207.62,207.6,38.54]
[1759153353677,5.51620889,207.64,207.6,38.54]
[1759153353846,0.7,207.63,207.6,38.54]
[1759153354042,4.81620889,207.64,207.6,38.54]
[1759153354256,0.7,207.63,207.6,38.54]
[1759153354572,0.7,207.62,207.61,38.5]
[1759153354771,0.7,207.62,207.57,79.3]
[1759153354971,0.7,207.61,207.58,38.5]
[1759153355174,0.7,207.6,207.58,38.5]
[1759153355356,32.52668602,207.63,207.53,4.81854106]
[1759153355357,0.7,207.59,207.53,79.3]
[1759153355563,33.22668602,207.58,207.5,4.81924389]
[1759153355769,4.81765187,207.57,207.51,38.48]
[1759153355960,16.86178156,207.57,207.51,38.48]
[1759153356161,0.7,207.56,207.51,38.48]
[1759153356479,32.52668602,207.58,207.51,38.48]
[1759153356679,18.5686353,207.61,207.52,0.22]
[1759153356854,7.22668602,207.61,207.52,0.22]
[1759153357349,0.7,207.61,207.53,38.52]
[1759153357573,7.22668602,207.61,207.53,38.52]
[1759153357774,4.81695568,207.6,207.53,38.52]
[1759153358075,6.52668602,207.61,207.53,55.60503129]
[1759153358274,7.22668602,207.61,207.53,55.60503129]
[1759153358515,6.52668602,207.65,207.54,13.81559401]
[1759153358658,6.52668602,207.65,207.54,92.89559401]
[1759153358659,26.0,207.62,207.54,92.89559401]
[1759153358852,26.0,207.62,207.55,0.22]
[1759153359680,38.04253047,207.65,207.55,0.22]
[1759153359984,24.08201999,207.65,207.56,38.52]
[1759153360160,0.7,207.64,207.56,38.52]
[1759153361752,4.81741978,207.58,207.56,79.3]
[1759153362159,30.8170001,207.6,207.57,38.5]
[1759153362380,26.7,207.59,207.57,38.5]